fUST/lending_fUST_20251029
["ID","MTS","AMOUNT","RATE_DAILY","PERIOD"]
[392568907,1761679869072,-500.0,0.00022191,2]
[392568908,1761679869083,-503.55,0.00022191,2]
[392568909,1761679869095,-500.0,0.00022191,2]
[392568910,1761679869108,-1248.99,0.00022191,2]
[392568911,1761679869120,-1256.61,0.00022191,2]
[392568912,1761679869132,-1375.89,0.00022191,2]
[392568913,1761679869145,-500.0,0.00022191,2]
[392568914,1761679869165,-766.95,0.00022191,2]
[392568915,1761679869177,-190.73882,0.000222,7]
[392568916,1761679869190,-3500.0,0.00022204,2]
[392568917,1761679869202,-3500.0,0.00022204,2]
[392568918,1761679869214,-3500.0,0.00022204,2]
[392568919,1761679869226,-3500.0,0.00022204,2]
[392568920,1761679869239,-190.73882,0.00022246,7]
[392568921,1761679869251,-153.357758,0.00022246,7]
[392568922,1761679869264,-3500.0,0.00022246,2]
[392568923,1761679869276,-3500.0,0.00022246,2]
[392568924,1761679869289,-4388.0,0.00022282,2]
[392568925,1761679869301,-190.73882,0.00022292,7]
[392568926,1761679869313,-153.357758,0.00022292,7]
[392568927,1761679869326,-190.73882,0.00022338,7]
[392568928,1761679869337,-153.357758,0.00022338,7]
[392568929,1761679869349,-181.8259136,0.00022342,2]
[392568930,1761679869360,-190.73882,0.00022384,7]
[392568931,1761679869372,-153.357758,0.00022384,7]
[392568932,1761679869383,-190.73882,0.00022465,2]
[392568933,1761679869395,-153.357758,0.00022465,2]
[392568934,1761679869407,-500.0,0.00022465,2]
[392568935,1761679869420,-500.0,0.00022465,2]
[392568936,1761679869432,-500.0,0.00022465,2]
[392568937,1761679869445,-1072.77,0.00022465,2]
[392568938,1761679869458,-500.0,0.00022465,2]
[392568939,1761679869470,-308.1197899,0.00022465,2]
[392568940,1761679869484,-648.26,0.00022465,2]
[392568941,1761679869500,-500.0,0.00022465,2]
[392568942,1761679869511,-500.0,0.00022465,2]
[392568943,1761679869524,-500.0,0.00022465,2]
[392568944,1761679869535,-500.0,0.00022465,2]
[392568945,1761679869547,-500.0,0.00022465,2]
[392568946,1761679869561,-500.0,0.00022465,2]
[392568947,1761679869572,-500.0,0.00022465,2]
[392568948,1761679869583,-500.0,0.00022465,2]
[392568949,1761679869595,-500.0,0.00022465,2]
[392568950,1761679869607,-500.0,0.00022465,2]
[392568951,1761679869618,-500.0,0.00022465,2]
[392568952,1761679869629,-500.0,0.00022465,2]
[392568953,1761679869642,-500.0,0.00022465,2]
[392568954,1761679869653,-782.92,0.00022465,2]
[392568955,1761679869665,-500.0,0.00022465,2]
[392568956,1761679869676,-500.0,0.00022465,2]
[392568957,1761679869688,-500.0,0.00022465,2]
[392568958,1761679869700,-500.0,0.00022465,2]
[392568959,1761679869711,-500.0,0.00022465,2]
[392568960,1761679869723,-500.0,0.00022465,2]
[392568961,1761679869734,-886.39,0.00022465,2]
[392568962,1761679869746,-552.93,0.00022465,2]
[392568963,1761679869757,-436.42254161,0.00022465,2]
[392568964,1761679869769,-500.0,0.00022465,2]
[392568965,1761679869780,-500.0,0.00022465,2]
[392568966,1761679869792,-500.0,0.00022465,2]
[392568967,1761679869803,-500.0,0.00022465,2]
[392568968,1761679869814,-614.0,0.00022465,2]
[392568969,1761679869826,-998.86,0.00022465,2]
[392568970,1761679869837,-670.14,0.00022465,2]
[392568971,1761679869849,-500.0,0.00022465,2]
[392568972,1761679869860,-1000.0,0.00022465,2]
[392568973,1761679869871,-500.0,0.00022465,2]
[392568974,1761679869883,-213.94683355,0.00022465,2]
[392568975,1761679869894,-784.21,0.00022465,2]
[392568976,1761679869907,-500.0,0.00022465,2]
[392568977,1761679869919,-828.61,0.00022465,2]
[392568978,1761679869930,-514.6,0.00022465,2]
[392568979,1761679869941,-558.55,0.00022465,2]
[392568980,1761679869953,-500.0,0.00022465,2]
[392568981,1761679869964,-500.0,0.00022465,2]
[392568982,1761679869975,-1153.71,0.00022465,2]
[392568983,1761679869986,-500.0,0.00022465,2]
[392568984,1761679869997,-500.0,0.00022465,2]
[392568985,1761679870009,-615.0,0.00022465,2]
[392568986,1761679870020,-500.0,0.00022465,2]
[392568987,1761679870032,-2079.62,0.00022465,2]
[392568988,1761679870042,-500.0,0.00022465,2]
[392568989,1761679870053,-500.0,0.00022465,2]
[392568990,1761679870064,-909.23,0.00022465,2]
[392568991,1761679870075,-477.54569558,0.00022465,2]
[392568992,1761679870087,-1517.19,0.00022465,2]
[392568993,1761679870098,-500.0,0.00022465,2]
[392568994,1761679870109,-786.16,0.00022465,2]
[392568995,1761679870120,-500.0,0.00022465,2]
[392568996,1761679870131,-500.0,0.00022465,2]
[392568997,1761679870142,-500.0,0.00022465,2]
[392568998,1761679870154,-619.7,0.00022465,2]
[392568999,1761679870165,-2103.4,0.00022465,2]
[392569000,1761679870176,-500.0,0.00022465,2]
[392569001,1761679870187,-500.0,0.00022465,2]
[392569002,1761679870198,-682.03,0.00022465,2]
[392569003,1761679870209,-500.0,0.00022465,2]
[392569004,1761679870219,-470.57979541,0.00022465,2]
[392569005,1761679870231,-500.0,0.00022465,2]
[392569006,1761679870241,-548.61,0.00022465,2]
[392569007,1761679870253,-500.0,0.00022465,2]
[392569008,1761679870264,-500.0,0.00022465,2]
[392569009,1761679870276,-602.76,0.00022465,2]
[392569010,1761679870287,-500.0,0.00022465,2]
[392569011,1761679870298,-500.0,0.00022465,2]
[392569012,1761679870309,-500.0,0.00022465,2]
[392569013,1761679870321,-500.0,0.00022465,2]
[392569014,1761679870333,-686.6,0.00022465,2]
[392569015,1761679870344,-500.0,0.00022465,2]
[392569016,1761679870356,-500.0,0.00022465,2]
[392569017,1761679870367,-1222.29,0.00022465,2]
[392569018,1761679870378,-500.0,0.00022465,2]
[392569019,1761679870389,-500.0,0.00022465,2]
[392569020,1761679870400,-500.0,0.00022465,2]
[392569021,1761679870411,-500.0,0.00022465,2]
[392569022,1761679870423,-500.0,0.00022465,2]
[392569023,1761679870434,-561.05,0.00022465,2]
[392569024,1761679870445,-500.0,0.00022465,2]
[392569025,1761679870456,-514.13,0.00022465,2]
[392569026,1761679870467,-500.0,0.00022465,2]
[392569027,1761679870478,-500.0,0.00022465,2]
[392569028,1761679870489,-500.0,0.00022465,2]
[392569029,1761679870774,-500.0,0.00022465,2]
[392569030,1761679870788,-500.0,0.00022465,2]
[392569031,1761679870798,-500.0,0.00022465,2]
[392569032,1761679870807,-500.0,0.00022465,2]
[392569033,1761679870816,-500.0,0.00022465,2]
[392569034,1761679870825,-500.0,0.00022465,2]
[392569035,1761679870835,-500.0,0.00022465,2]
[392569036,1761679870844,-578.9008377,0.00022465,2]
[392569037,1761679870853,-500.0,0.00022465,2]
[392569038,1761679870862,-500.0,0.00022465,2]
[392569039,1761679870871,-500.0,0.00022465,2]
[392569040,1761679870880,-500.0,0.00022465,2]
[392569041,1761679870889,-500.0,0.00022465,2]
[392569042,1761679870899,-500.0,0.00022465,2]
[392569043,1761679870908,-500.0,0.00022465,2]
[392569044,1761679870917,-5331.46,0.00022465,2]
[392569045,1761679870926,-500.0,0.00022465,2]
[392569046,1761679870935,-500.0,0.00022465,2]
[392569047,1761679870944,-500.0,0.00022465,2]
[392569048,1761679870953,-500.0,0.00022465,2]
[392569049,1761679870962,-500.0,0.00022465,2]
[392569050,1761679870971,-544.46312402,0.00022465,2]
[392569051,1761679870980,-500.0,0.00022465,2]
[392569052,1761679870990,-500.0,0.00022465,2]
[392569053,1761679870999,-556.52,0.00022465,2]
[392569054,1761679871008,-500.0,0.00022465,2]
[392569055,1761679871017,-500.0,0.00022465,2]
[392569056,1761679871026,-500.0,0.00022465,2]
[392569057,1761679871034,-500.0,0.00022465,2]
[392569058,1761679871043,-529.94,0.00022465,2]
[392569059,1761679871052,-224.02555265,0.00022465,2]
[392569060,1761679871062,-500.0,0.00022465,2]
[392569061,1761679871071,-500.0,0.00022465,2]
[392569062,1761679871080,-513.96,0.00022465,2]
[392569063,1761679871090,-554.21,0.00022465,2]
[392569064,1761679871099,-2952.31,0.00022465,2]
[392569065,1761679871108,-500.0,0.00022465,2]
[392569066,1761679871117,-1021.36,0.00022465,2]
[392569067,1761679871126,-500.0,0.00022465,2]
[392569068,1761679871135,-511.46,0.00022465,2]
[392569069,1761679871144,-628.82,0.00022465,2]
[392569070,1761679871153,-500.0,0.00022465,2]
[392569071,1761679871163,-535.24,0.00022465,2]
[392569072,1761679871172,-519.63,0.00022465,2]
[392569073,1761679871182,-1185.92,0.00022465,2]
[392569074,1761679871191,-500.0,0.00022465,2]
[392569075,1761679871200,-500.0,0.00022465,2]
[392569076,1761679871209,-500.0,0.00022465,2]
[392569077,1761679871218,-590.09,0.00022465,2]
[392569078,1761679871228,-1075.3,0.00022465,2]
[392569079,1761679871237,-500.0,0.00022465,2]
[392569080,1761679871247,-667.5,0.00022465,2]
[392569081,1761679871256,-500.0,0.00022465,2]
[392569082,1761679871265,-441.61496891,0.00022465,2]
[392569083,1761679871274,-500.0,0.00022465,2]
[392569084,1761679871283,-500.0,0.00022465,2]
[392569085,1761679871292,-500.0,0.00022465,2]
[392569086,1761679871301,-1147.08,0.00022465,2]
[392569087,1761679871311,-606.25,0.00022465,2]
[392569088,1761679871320,-1152.79,0.00022465,2]
[392569089,1761679871329,-500.0,0.00022465,2]
[392569090,1761679871339,-604.83232208,0.00022465,2]
[392569091,1761679871348,-1046.61,0.00022465,2]
[392569092,1761679871357,-500.0,0.00022465,2]
[392569093,1761679871368,-350.29171978,0.00022465,2]
[392569094,1761679871377,-500.0,0.00022465,2]
[392569095,1761679871388,-518.14,0.00022465,2]
[392569096,1761679871397,-565.45,0.00022465,2]
[392569097,1761679871406,-704.16,0.00022465,2]
[392569098,1761679871416,-500.0,0.00022465,2]
[392569099,1761679871425,-500.0,0.00022465,2]
[392569100,1761679871434,-500.0,0.00022465,2]
[392569101,1761679871443,-728.73,0.00022465,2]
[392569102,1761679871452,-500.0,0.00022465,2]
[392569103,1761679871461,-500.0,0.00022465,2]
[392569104,1761679871470,-1273.64,0.00022465,2]
[392569105,1761679871479,-889.15,0.00022465,2]
[392569106,1761679871488,-603.28,0.00022465,2]
[392569107,1761679871498,-500.0,0.00022465,2]
[392569108,1761679871509,-922.09,0.00022465,2]
[392569109,1761679871518,-942.82,0.00022465,2]
[392569110,1761679871527,-1184.05,0.00022465,2]
[392569111,1761679871536,-1330.23,0.00022465,2]
[392569112,1761679871545,-500.0,0.00022465,2]
[392569113,1761679871555,-500.0,0.00022465,2]
[392569114,1761679871564,-654.8,0.00022465,2]
[392569115,1761679871573,-626.25,0.00022465,2]
[392569116,1761679871582,-500.0,0.00022465,2]
[392569117,1761679871591,-500.0,0.00022465,2]
[392569118,1761679871600,-500.0,0.00022465,2]
[392569119,1761679871609,-500.0,0.00022465,2]
[392569120,1761679871618,-500.0,0.00022465,2]
[392569121,1761679871627,-751.78,0.00022465,2]
[392569122,1761679871636,-500.0,0.00022465,2]
[392569123,1761679871645,-823.66,0.00022465,2]
[392569124,1761679871655,-500.0,0.00022465,2]
[392569125,1761679871663,-500.0,0.00022465,2]
[392569126,1761679871672,-500.0,0.00022465,2]
[392569127,1761679871681,-500.0,0.00022465,2]
[392569128,1761679871690,-500.0,0.00022465,2]
[392569129,1761679871699,-500.0,0.00022465,2]
[392569130,1761679871708,-500.0,0.00022465,2]
[392569131,1761679871717,-1964.99,0.00022465,2]
[392569132,1761679871727,-500.0,0.00022465,2]
[392569133,1761679871737,-922.55,0.00022465,2]
[392569134,1761679871746,-500.0,0.00022465,2]
[392569135,1761679871755,-500.0,0.00022465,2]
[392569136,1761679871764,-500.0,0.00022465,2]
[392569137,1761679871774,-834.6,0.00022465,2]
[392569138,1761679871784,-886.65,0.00022465,2]
[392569139,1761679871793,-500.0,0.00022465,2]
[392569140,1761679871802,-1658.18,0.00022465,2]
[392569141,1761679871811,-500.0,0.00022465,2]
[392569142,1761679871820,-500.0,0.00022465,2]
[392569143,1761679871829,-500.0,0.00022465,2]
[392569144,1761679871838,-500.0,0.00022465,2]
[392569145,1761679871847,-500.0,0.00022465,2]
[392569146,1761679871856,-520.48,0.00022465,2]
[392569147,1761679871866,-500.0,0.00022465,2]
[392569148,1761679871875,-607.62,0.00022465,2]
[392569149,1761679871884,-469.41473533,0.00022465,2]
[392569150,1761679871893,-927.54,0.00022465,2]
[392569151,1761679871902,-498.18872805,0.00022465,2]
[392569152,1761679871912,-500.0,0.00022465,2]
[392569153,1761679871921,-500.0,0.00022465,2]
[392569154,1761679871931,-500.0,0.00022465,2]
[392569155,1761679871940,-567.0666948,0.00022465,2]
[392569156,1761679871949,-500.0,0.00022465,2]
[392569157,1761679871959,-742.77,0.00022465,2]
[392569158,1761679871968,-500.0,0.00022465,2]
[392569159,1761679871977,-514.18,0.00022465,2]
[392569160,1761679871986,-517.32,0.00022465,2]
[392569161,1761679871995,-1076.34,0.00022465,2]
[392569162,1761679872005,-501.1785941,0.00022465,2]
[392569163,1761679872014,-559.71,0.00022465,2]
[392569164,1761679872024,-651.18,0.00022465,2]
[392569165,1761679872033,-500.0,0.00022465,2]
[392569166,1761679872042,-500.0,0.00022465,2]
[392569167,1761679872051,-500.0,0.00022465,2]
[392569168,1761679872061,-601.44,0.00022465,2]
[392569169,1761679872070,-1303.71,0.00022465,2]
[392569170,1761679872080,-500.0,0.00022465,2]
[392569171,1761679872090,-500.0,0.00022465,2]
[392569172,1761679872101,-851.89,0.00022465,2]
[392569173,1761679872110,-500.0,0.00022465,2]
[392569174,1761679872119,-500.0,0.00022465,2]
[392569175,1761679872129,-500.0,0.00022465,2]
[392569176,1761679872139,-1451.24,0.00022465,2]
[392569177,1761679872148,-500.0,0.00022465,2]
[392569178,1761679872158,-500.0,0.00022465,2]
[392569179,1761679872167,-500.0,0.00022465,2]
[392569180,1761679872176,-789.58,0.00022465,2]
[392569181,1761679872186,-1395.94,0.00022465,2]
[392569182,1761679872195,-738.02,0.00022465,2]
[392569183,1761679872205,-1422.48,0.00022465,2]
[392569184,1761679872214,-233.8,0.00022465,2]
[392569185,1761679872224,-500.0,0.00022465,2]
[392569186,1761679872233,-500.0,0.00022465,2]
[392569187,1761679872244,-500.0,0.00022465,2]
[392569188,1761679872262,-533.82,0.00022465,2]
[392569189,1761679872272,-500.0,0.00022465,2]
[392569190,1761679872282,-500.0,0.00022465,2]
[392569191,1761679872291,-500.0,0.00022465,2]
[392569192,1761679872301,-500.0,0.00022465,2]
[392569193,1761679872311,-1872.71,0.00022465,2]
[392569194,1761679872322,-1785.18,0.00022465,2]
[392569195,1761679872332,-19733.49,0.00022465,2]
[392569196,1761679872342,-539.66,0.00022465,2]
[392569197,1761679872352,-500.0,0.00022465,2]
[392569198,1761679872362,-500.0,0.00022465,2]
[392569199,1761679872372,-500.0,0.00022465,2]
[392569200,1761679872382,-1049.25,0.00022465,2]
[392569201,1761679872391,-500.0,0.00022465,2]
[392569202,1761679872400,-500.0,0.00022465,2]
[392569203,1761679872410,-1000.0,0.00022465,2]
[392569204,1761679872419,-1003.02,0.00022465,2]
[392569205,1761679872429,-500.0,0.00022465,2]
[392569206,1761679872438,-500.0,0.00022465,2]
[392569207,1761679872447,-616.05,0.00022465,2]
[392569208,1761679872456,-986.7,0.00022465,2]
[392569209,1761679872465,-500.0,0.00022465,2]
[392569210,1761679872475,-790.17,0.00022465,2]
[392569211,1761679872485,-501.59,0.00022465,2]
[392569212,1761679872494,-500.0,0.00022465,2]
[392569213,1761679872508,-500.0,0.00022465,2]
[392569214,1761679872518,-1120.17,0.00022465,2]
[392569215,1761679872527,-830.18,0.00022465,2]
[392569216,1761679872537,-1454.82,0.00022465,2]
[392569217,1761679872547,-2392.29,0.00022465,2]
[392569218,1761679872556,-691.61,0.00022465,2]
[392569219,1761679872565,-500.0,0.00022465,2]
[392569220,1761679872575,-500.0,0.00022465,2]
[392569221,1761679872584,-500.0,0.00022465,2]
[392569222,1761679872593,-500.0,0.00022465,2]
[392569223,1761679872603,-612.19,0.00022465,2]
[392569224,1761679872612,-500.0,0.00022465,2]
[392569225,1761679872622,-500.0,0.00022465,2]
[392569226,1761679872631,-500.0,0.00022465,2]
[392569227,1761679872640,-2194.02,0.00022465,2]
[392569228,1761679872650,-500.0,0.00022465,2]
[392569229,1761679872660,-875.78,0.00022465,2]
[392569230,1761679872670,-500.0,0.00022465,2]
[392569231,1761679872679,-607.16,0.00022465,2]
[392569232,1761679872688,-500.0,0.00022465,2]
[392569233,1761679872699,-1069.94,0.00022465,2]
[392569234,1761679872708,-500.0,0.00022465,2]
[392569235,1761679872717,-1727.8,0.00022465,2]
[392569236,1761679872727,-500.0,0.00022465,2]
[392569237,1761679872736,-500.0,0.00022465,2]
[392569238,1761679872763,-501.58,0.00022465,2]
[392569239,1761679872772,-500.0,0.00022465,2]
[392569240,1761679872782,-3506.08,0.00022465,2]
[392569241,1761679872792,-1415.81,0.00022465,2]
[392569242,1761679872802,-500.0,0.00022465,2]
[392569243,1761679872811,-500.0,0.00022465,2]
[392569244,1761679872821,-1836.5,0.00022465,2]
[392569245,1761679872831,-1431.52,0.00022465,2]
[392569246,1761679872841,-500.0,0.00022465,2]
[392569247,1761679872851,-780.16,0.00022465,2]
[392569248,1761679872861,-500.0,0.00022465,2]
[392569249,1761679872870,-556.59,0.00022465,2]
[392569250,1761679872880,-500.0,0.00022465,2]
[392569251,1761679872890,-1305.43,0.00022465,2]
[392569252,1761679872899,-500.0,0.00022465,2]
[392569253,1761679872908,-500.0,0.00022465,2]
[392569254,1761679872919,-500.0,0.00022465,2]
[392569255,1761679872928,-807.18,0.00022465,2]
[392569256,1761679872938,-500.0,0.00022465,2]
[392569257,1761679872948,-2000.05,0.00022465,2]
[392569258,1761679872957,-500.0,0.00022465,2]
[392569259,1761679872967,-1620.44,0.00022465,2]
[392569260,1761679872976,-2572.64,0.00022465,2]
[392569261,1761679872987,-500.0,0.00022465,2]
[392569262,1761679872996,-500.0,0.00022465,2]
[392569263,1761679873006,-680.28,0.00022465,2]
[392569264,1761679873016,-2196.34,0.00022465,2]
[392569265,1761679873025,-500.0,0.00022465,2]
[392569266,1761679873035,-500.0,0.00022465,2]
[392569267,1761679873045,-1301.99,0.00022465,2]
[392569268,1761679873055,-500.0,0.00022465,2]
[392569269,1761679873065,-500.0,0.00022465,2]
[392569270,1761679873074,-541.3141217,0.00022465,2]
[392569271,1761679873083,-807.26,0.00022465,2]
[392569272,1761679873093,-595.64,0.00022465,2]
[392569273,1761679873102,-1337.78,0.00022465,2]
[392569274,1761679873112,-500.0,0.00022465,2]
[392569275,1761679873121,-500.0,0.00022465,2]
[392569276,1761679873131,-500.0,0.00022465,2]
[392569277,1761679873140,-500.0,0.00022465,2]
[392569278,1761679873149,-500.0,0.00022465,2]
[392569279,1761679873159,-2058.44,0.00022465,2]
[392569280,1761679873168,-970.8,0.00022465,2]
[392569281,1761679873178,-1432.62,0.00022465,2]
[392569282,1761679873187,-682.32,0.00022465,2]
[392569283,1761679873198,-733.85,0.00022465,2]
[392569284,1761679873207,-1594.25,0.00022465,2]
[392569285,1761679873215,-500.0,0.00022465,2]
[392569286,1761679873224,-500.0,0.00022465,2]
[392569287,1761679873233,-500.0,0.00022465,2]
[392569288,1761679873246,-1644.59,0.00022465,2]
[392569289,1761679873267,-500.0,0.00022465,2]
[392569290,1761679873276,-7766.23,0.00022465,2]
[392569291,1761679873286,-335.09158037,0.00022465,2]
[392569292,1761679873295,-3062.02,0.00022465,2]
[392569293,1761679873304,-500.0,0.00022465,2]
[392569294,1761679873312,-500.0,0.00022465,2]
[392569295,1761679873321,-500.0,0.00022465,2]
[392569296,1761679873330,-500.0,0.00022465,2]
[392569297,1761679873339,-1235.3,0.00022465,2]
[392569298,1761679873347,-690.17,0.00022465,2]
[392569299,1761679873357,-649.22774918,0.00022465,2]
[392569300,1761679873366,-1189.76,0.00022465,2]
[392569301,1761679873375,-4955.2,0.00022465,2]
[392569302,1761679873383,-500.0,0.00022465,2]
[392569303,1761679873392,-500.0,0.00022465,2]
[392569304,1761679873400,-596.38,0.00022465,2]
[392569305,1761679873408,-1250.77,0.00022465,2]
[392569306,1761679873417,-1863.84,0.00022465,2]
[392569307,1761679873427,-500.0,0.00022465,2]
[392569308,1761679873436,-2480.61,0.00022465,2]
[392569309,1761679873446,-1549.96,0.00022465,2]
[392569310,1761679873455,-500.0,0.00022465,2]
[392569311,1761679873465,-502.8,0.00022465,2]
[392569312,1761679873474,-500.0,0.00022465,2]
[392569313,1761679873485,-430.05888324,0.00022465,2]
[392569314,1761679873494,-500.0,0.00022465,2]
[392569315,1761679873507,-500.0,0.00022465,2]
[392569316,1761679873516,-803.94,0.00022465,2]
[392569317,1761679873526,-654.12,0.00022465,2]
[392569318,1761679873536,-500.0,0.00022465,2]
[392569319,1761679873545,-687.1,0.00022465,2]
[392569320,1761679873555,-896.2,0.00022465,2]
[392569321,1761679873565,-818.08,0.00022465,2]
[392569322,1761679873575,-628.14,0.00022465,2]
[392569323,1761679873585,-168.85466323,0.00022465,2]
[392569324,1761679873595,-500.0,0.00022465,2]
[392569325,1761679873604,-509.97,0.00022465,2]
[392569326,1761679873614,-1343.44,0.00022465,2]
[392569327,1761679873623,-286.51216497,0.00022465,2]
[392569328,1761679873632,-700.51,0.00022465,2]
[392569329,1761679873642,-1736.51,0.00022465,2]
[392569330,1761679873652,-2007.69,0.00022465,2]
[392569331,1761679873661,-500.0,0.00022465,2]
[392569332,1761679873670,-500.0,0.00022465,2]
[392569333,1761679873679,-500.0,0.00022465,2]
[392569334,1761679873689,-500.0,0.00022465,2]
[392569335,1761679873698,-665.49,0.00022465,2]
[392569336,1761679873708,-750.08,0.00022465,2]
[392569337,1761679873717,-500.0,0.00022465,2]
[392569338,1761679873725,-1403.86,0.00022465,2]
[392569339,1761679873735,-500.0,0.00022465,2]
[392569340,1761679873761,-1926.72,0.00022465,2]
[392569341,1761679873771,-500.0,0.00022465,2]
[392569342,1761679873780,-1021.6,0.00022465,2]
[392569343,1761679873789,-620.31,0.00022465,2]
[392569344,1761679873799,-2695.02,0.00022465,2]
[392569345,1761679873808,-500.0,0.00022465,2]
[392569346,1761679873817,-500.0,0.00022465,2]
[392569347,1761679873828,-500.0,0.00022465,2]
[392569348,1761679873837,-500.0,0.00022465,2]
[392569349,1761679873847,-2759.59,0.00022465,2]
[392569350,1761679873856,-500.0,0.00022465,2]
[392569351,1761679874030,-500.0,0.00022465,2]
[392569352,1761679874045,-741.82,0.00022465,2]
[392569353,1761679874056,-500.0,0.00022465,2]
[392569354,1761679874065,-562.58,0.00022465,2]
[392569355,1761679874074,-500.0,0.00022465,2]
[392569356,1761679874083,-1578.97,0.00022465,2]
[392569357,1761679874092,-500.0,0.00022465,2]
[392569358,1761679874101,-4245.83,0.00022465,2]
[392569359,1761679874111,-1100.87,0.00022465,2]
[392569360,1761679874120,-511.77,0.00022465,2]
[392569361,1761679874129,-500.0,0.00022465,2]
[392569362,1761679874138,-1991.9,0.00022465,2]
[392569363,1761679874148,-500.0,0.00022465,2]
[392569364,1761679874157,-556.06,0.00022465,2]
[392569365,1761679874167,-898.43285962,0.00022465,2]
[392569366,1761679874511,-1025.57714038,0.00022465,2]
[392569367,1761679874521,-490.75397427,0.00022465,2]
[392569368,1761679874533,-1641.68,0.00022465,2]
[392569369,1761679874542,-2083.33,0.00022465,2]
[392569370,1761679874554,-2320.9,0.00022465,2]
[392569371,1761679874563,-500.0,0.00022465,2]
[392569372,1761679874572,-510.72,0.00022465,2]
[392569373,1761679874583,-500.0,0.00022465,2]
[392569374,1761679874592,-704.59,0.00022465,2]
[392569375,1761679874601,-754.01573392,0.00022465,2]
[392569376,1761679874622,-2399.97426608,0.00022465,2]
[392569377,1761679874631,-557.75451724,0.00022465,2]
[392569378,1761679874640,-500.0,0.00022465,2]
[392569379,1761679874650,-500.0,0.00022465,2]
[392569380,1761679874659,-866.27,0.00022465,2]
[392569381,1761679874669,-500.0,0.00022465,2]
[392569382,1761679874678,-500.0,0.00022465,2]
[392569383,1761679874687,-500.0,0.00022465,2]
[392569384,1761679874696,-500.0,0.00022465,2]
[392569385,1761679874706,-500.0,0.00022465,2]
[392569386,1761679874715,-1161.9,0.00022465,2]
[392569387,1761679874725,-500.0,0.00022465,2]
[392569388,1761679874734,-500.0,0.00022465,2]
[392569389,1761679874749,-1398.77,0.00022465,2]
[392569390,1761679874768,-500.0,0.00022465,2]
[392569391,1761679874777,-984.12,0.00022465,2]
[392569392,1761679874787,-965.05,0.00022465,2]
[392569393,1761679874797,-447.10811137,0.00022465,2]
[392569394,1761679874807,-587.46,0.00022465,2]
[392569395,1761679874816,-500.0,0.00022465,2]
[392569396,1761679874825,-648.56,0.00022465,2]
[392569397,1761679874835,-500.0,0.00022465,2]
[392569398,1761679874845,-1216.93,0.00022465,2]
[392569399,1761679874855,-500.0,0.00022465,2]
[392569400,1761679874865,-503.55,0.00022465,2]
[392569401,1761679874875,-500.0,0.00022465,2]
[392569402,1761679874884,-1248.99,0.00022465,2]
[392569403,1761679874893,-1256.61,0.00022465,2]
[392569404,1761679874903,-1375.89,0.00022465,2]
[392569405,1761679874913,-131.06310531,0.00022465,2]
[392569406,1761679874924,-635.88689469,0.00022465,2]